[Event "Late-Titled-Tuesday-Blitz-January-16-2024"]
[Site "Chess.com"]
[Date "2024.01.16"]
[Round "10"]
[White "Maect19"]
[Black "rdarruda"]
[Result "0-1"]
[WhiteElo "2358"]
[BlackElo "2489"]
[TimeControl "180+1"]
[EndTime "15:57:15 PST"]
[Termination "rdarruda won by resignation"]

1. Nf3 {[%clk 0:03:00.9]} 1... d5 {[%clk 0:02:28.7]} 2. e3 {[%clk 0:02:59.5]}
2... Nf6 {[%clk 0:02:28.2]} 3. c4 {[%clk 0:02:59.4]} 3... c6 {[%clk 0:02:26.5]}
4. b3 {[%clk 0:02:59.5]} 4... g6 {[%clk 0:02:26.9]} 5. Bb2 {[%clk 0:02:59.5]}
5... Bg7 {[%clk 0:02:27.6]} 6. d4 {[%clk 0:02:57.3]} 6... O-O {[%clk 0:02:25.4]}
7. Be2 {[%clk 0:02:57.3]} 7... Nbd7 {[%clk 0:02:22.8]} 8. O-O {[%clk 0:02:57.3]}
8... Ne4 {[%clk 0:02:22.9]} 9. Nbd2 {[%clk 0:02:55.6]} 9... Ndf6 {[%clk
0:02:22.2]} 10. Nxe4 {[%clk 0:02:54.1]} 10... Nxe4 {[%clk 0:02:23.1]} 11. Nd2
{[%clk 0:02:52.4]} 11... Nxd2 {[%clk 0:02:15.5]} 12. Qxd2 {[%clk 0:02:52]} 12...
Be6 {[%clk 0:02:13.9]} 13. f3 {[%clk 0:02:47.5]} 13... f5 {[%clk 0:02:12.7]} 14.
Rae1 {[%clk 0:02:40.6]} 14... Bf7 {[%clk 0:02:11]} 15. Bd3 {[%clk 0:02:38.8]}
15... Qb6 {[%clk 0:02:08.4]} 16. Kh1 {[%clk 0:02:36.4]} 16... Rad8 {[%clk
0:02:06.8]} 17. Ba3 {[%clk 0:02:08.3]} 17... Rfe8 {[%clk 0:01:59.6]} 18. Qb4
{[%clk 0:02:07.1]} 18... Qxb4 {[%clk 0:01:56.4]} 19. Bxb4 {[%clk 0:02:06.9]}
19... e5 {[%clk 0:01:56.8]} 20. cxd5 {[%clk 0:01:58.3]} 20... Rxd5 {[%clk
0:01:42.9]} 21. Bc4 {[%clk 0:01:54.9]} 21... Rdd8 {[%clk 0:01:42.4]} 22. Bxf7+
{[%clk 0:01:45.8]} 22... Kxf7 {[%clk 0:01:43.3]} 23. dxe5 {[%clk 0:01:45.7]}
23... Rxe5 {[%clk 0:01:37.6]} 24. Kg1 {[%clk 0:01:29.8]} 24... Rd3 {[%clk
0:01:21.1]} 25. Kf2 {[%clk 0:01:14.7]} 25... Rb5 {[%clk 0:01:19.4]} 26. a3
{[%clk 0:00:53.5]} 26... Rxb3 {[%clk 0:01:18.3]} 27. Rd1 {[%clk 0:00:53.7]}
27... Rb2+ {[%clk 0:01:06.7]} 28. Kg3 {[%clk 0:00:48.9]} 28... Be5+ {[%clk
0:00:41.4]} 29. f4 {[%clk 0:00:43.3]} 29... a5 {[%clk 0:00:41.7]} 30. Rd7+
{[%clk 0:00:26.6]} 30... Kg8 {[%clk 0:00:30.8]} 31. Be7 {[%clk 0:00:16.1]} 31...
Bg7 {[%clk 0:00:24.8]} 32. Rfd1 {[%clk 0:00:15.3]} 32... Rd5 {[%clk 0:00:20.3]}
33. R7xd5 {[%clk 0:00:14.4]} 33... cxd5 {[%clk 0:00:21.2]} 34. Rxd5 {[%clk
0:00:14.3]} 34... b5 {[%clk 0:00:21.4]} 35. Bc5 {[%clk 0:00:13.2]} 35... Bc3
{[%clk 0:00:17.6]} 36. Rd8+ {[%clk 0:00:12.9]} 36... Kf7 {[%clk 0:00:17.7]} 37.
Rd7+ {[%clk 0:00:13.3]} 37... Ke6 {[%clk 0:00:17.7]} 38. Rxh7 {[%clk 0:00:12.7]}
38... Rb3 {[%clk 0:00:12.2]} 39. Rb7 {[%clk 0:00:11.9]} 39... Kd5 {[%clk
0:00:12.2]} 40. Bf8 {[%clk 0:00:11.6]} 40... Bd2 {[%clk 0:00:11.2]} 41. Kf2
{[%clk 0:00:11.4]} 41... Bxe3+ {[%clk 0:00:10.8]} 42. Kf3 {[%clk 0:00:11.3]}
42... Bc5+ {[%clk 0:00:11.4]} 43. Ke2 {[%clk 0:00:09.6]} 43... Bxf8 {[%clk
0:00:12.3]} 44. Rd7+ {[%clk 0:00:08.9]} 44... Kc6 {[%clk 0:00:11.8]} 45. Rf7
{[%clk 0:00:07.9]} 45... Bc5 {[%clk 0:00:12.7]} 46. Rf6+ {[%clk 0:00:07.7]}
46... Kd5 {[%clk 0:00:13.4]} 47. Rxg6 {[%clk 0:00:08.3]} 47... Rxa3 {[%clk
0:00:13.6]} 48. Rf6 {[%clk 0:00:08.7]} 48... Ke4 {[%clk 0:00:13.2]} 49. g3
{[%clk 0:00:09.2]} 49... b4 {[%clk 0:00:11.7]} 50. Re6+ {[%clk 0:00:08.8]} 50...
Kd4 {[%clk 0:00:12.1]} 51. Rf6 {[%clk 0:00:09]} 51... b3 {[%clk 0:00:12.3]} 52.
Kd2 {[%clk 0:00:06.6]} 52... Ra2+ {[%clk 0:00:11.9]} 53. Kc1 {[%clk 0:00:06.7]}
53... Ba3+ {[%clk 0:00:12.2]} 54. Kb1 {[%clk 0:00:06.8]} 54... Rxh2 {[%clk
0:00:11.2]} 55. Rd6+ {[%clk 0:00:04.3]} 55... Bxd6 {[%clk 0:00:09.8]} 0-1

[Event "Late-Titled-Tuesday-Blitz-January-16-2024"]
[Site "Chess.com"]
[Date "2024.01.16"]
[Round "10"]
[White "Smile2005"]
[Black "The_Straightforward_Rook"]
[Result "1-0"]
[WhiteElo "2366"]
[BlackElo "2456"]
[TimeControl "180+1"]
[EndTime "15:57:15 PST"]
[Termination "Smile2005 won by checkmate"]

1. e4 {[%clk 0:02:57.2]} 1... c6 {[%clk 0:02:59.7]} 2. Nf3 {[%clk 0:02:55.9]}
2... d5 {[%clk 0:03:00.6]} 3. d3 {[%clk 0:02:56.8]} 3... Nd7 {[%clk 0:02:49.3]}
4. Nc3 {[%clk 0:02:52.9]} 4... e6 {[%clk 0:02:40]} 5. Qe2 {[%clk 0:02:51.1]}
5... Bb4 {[%clk 0:02:39.1]} 6. Bd2 {[%clk 0:02:51.1]} 6... Ne7 {[%clk
0:02:38.6]} 7. exd5 {[%clk 0:02:50.7]} 7... cxd5 {[%clk 0:02:35.8]} 8. g3 {[%clk
0:02:50.1]} 8... O-O {[%clk 0:02:31.5]} 9. Bg2 {[%clk 0:02:49.1]} 9... Nf5
{[%clk 0:02:29.2]} 10. O-O {[%clk 0:02:46.8]} 10... h6 {[%clk 0:02:23.4]} 11. d4
{[%clk 0:02:46.5]} 11... Nb6 {[%clk 0:02:21.4]} 12. a3 {[%clk 0:02:45.3]} 12...
Be7 {[%clk 0:02:16.3]} 13. Ne5 {[%clk 0:02:44.8]} 13... Nxd4 {[%clk 0:02:12.1]}
14. Qd3 {[%clk 0:02:43.2]} 14... Nf5 {[%clk 0:02:11.1]} 15. b3 {[%clk
0:02:35.9]} 15... Bf6 {[%clk 0:02:10.5]} 16. f4 {[%clk 0:02:33.9]} 16... Nd7
{[%clk 0:02:08.7]} 17. Rae1 {[%clk 0:02:29.2]} 17... Nxe5 {[%clk 0:01:47.2]} 18.
fxe5 {[%clk 0:02:29.1]} 18... Bg5 {[%clk 0:01:48.1]} 19. Bxg5 {[%clk 0:02:27.9]}
19... Qxg5 {[%clk 0:01:47.6]} 20. Nb5 {[%clk 0:02:02]} 20... Bd7 {[%clk
0:01:45.2]} 21. Nd4 {[%clk 0:01:58.2]} 21... Nxd4 {[%clk 0:01:44.7]} 22. Qxd4
{[%clk 0:01:59.1]} 22... b6 {[%clk 0:01:41.5]} 23. c4 {[%clk 0:01:58.7]} 23...
Bc6 {[%clk 0:01:34]} 24. cxd5 {[%clk 0:01:57.9]} 24... Bxd5 {[%clk 0:01:34.6]}
25. Bxd5 {[%clk 0:01:57.6]} 25... Rad8 {[%clk 0:01:35.3]} 26. Qa4 {[%clk
0:01:45.1]} 26... Rxd5 {[%clk 0:01:35.2]} 27. Qxa7 {[%clk 0:01:44.4]} 27... Rxe5
{[%clk 0:01:35.4]} 28. Rxe5 {[%clk 0:01:42.5]} 28... Qxe5 {[%clk 0:01:35.5]} 29.
Qxb6 {[%clk 0:01:42.8]} 29... Rb8 {[%clk 0:01:32.4]} 30. Qa7 {[%clk 0:01:39]}
30... Rf8 {[%clk 0:01:19.9]} 31. b4 {[%clk 0:01:38.8]} 31... h5 {[%clk
0:01:17.1]} 32. a4 {[%clk 0:01:37.4]} 32... h4 {[%clk 0:01:09.7]} 33. Qf2 {[%clk
0:01:34.6]} 33... h3 {[%clk 0:01:06.7]} 34. b5 {[%clk 0:01:12.9]} 34... f6
{[%clk 0:01:05.7]} 35. b6 {[%clk 0:01:10.7]} 35... Qd5 {[%clk 0:00:59.2]} 36.
Rb1 {[%clk 0:00:59.4]} 36... Ra8 {[%clk 0:00:52.7]} 37. b7 {[%clk 0:00:55]}
37... Rb8 {[%clk 0:00:52.8]} 38. Qb2 {[%clk 0:00:42.3]} 38... Qc5+ {[%clk
0:00:47.7]} 39. Qf2 {[%clk 0:00:40]} 39... Qc6 {[%clk 0:00:39.5]} 40. Qf1 {[%clk
0:00:21.4]} 40... Qxa4 {[%clk 0:00:34]} 41. Qe2 {[%clk 0:00:10.4]} 41... Qa7+
{[%clk 0:00:29.4]} 42. Kf1 {[%clk 0:00:10.1]} 42... Rxb7 {[%clk 0:00:20.3]} 43.
Qxe6+ {[%clk 0:00:10.1]} 43... Kf8 {[%clk 0:00:19.3]} 44. Qc8+ {[%clk
0:00:09.5]} 44... Kf7 {[%clk 0:00:19.9]} 45. Rxb7+ {[%clk 0:00:09.7]} 45... Kg6
{[%clk 0:00:20.8]} 46. Rxa7 {[%clk 0:00:09.2]} 46... Kg5 {[%clk 0:00:21.7]} 47.
Qxh3 {[%clk 0:00:09.3]} 47... Kg6 {[%clk 0:00:21.9]} 48. Ra5 {[%clk 0:00:08.8]}
48... Kf7 {[%clk 0:00:22.8]} 49. Qh5+ {[%clk 0:00:09]} 49... g6 {[%clk
0:00:23.2]} 50. Qh7+ {[%clk 0:00:09.3]} 50... Ke6 {[%clk 0:00:24.1]} 51. Qc7
{[%clk 0:00:08]} 51... f5 {[%clk 0:00:25]} 52. Ra6+ {[%clk 0:00:08.1]} 52... Kd5
{[%clk 0:00:24.3]} 53. Qc6+ {[%clk 0:00:08.1]} 53... Kd4 {[%clk 0:00:24.5]} 54.
Ra4+ {[%clk 0:00:08.4]} 54... Ke3 {[%clk 0:00:25.4]} 55. Qc3# {[%clk 0:00:08.1]}
1-0

[Event "Late-Titled-Tuesday-Blitz-January-16-2024"]
[Site "Chess.com"]
[Date "2024.01.16"]
[Round "10"]
[White "imdarealist"]
[Black "Mikhail_Golubev"]
[Result "1-0"]
[WhiteElo "2303"]
[BlackElo "2482"]
[TimeControl "180+1"]
[EndTime "15:57:23 PST"]
[Termination "imdarealist won on time"]

1. d4 {[%clk 0:01:02.4]} 1... Nf6 {[%clk 0:02:58.8]} 2. Bf4 {[%clk 0:01:01.9]}
2... d6 {[%clk 0:02:58.4]} 3. e3 {[%clk 0:01:01.7]} 3... Nbd7 {[%clk 0:02:58.7]}
4. Nf3 {[%clk 0:00:59.4]} 4... Nh5 {[%clk 0:02:58.5]} 5. Bg5 {[%clk 0:00:58.5]}
5... h6 {[%clk 0:02:58.7]} 6. Bh4 {[%clk 0:00:58.8]} 6... g5 {[%clk 0:02:58.7]}
7. Nfd2 {[%clk 0:00:59.2]} 7... Ndf6 {[%clk 0:02:55.8]} 8. Bg3 {[%clk
0:00:57.5]} 8... Bg7 {[%clk 0:02:50.7]} 9. Bd3 {[%clk 0:00:54.3]} 9... Nxg3
{[%clk 0:02:34.8]} 10. hxg3 {[%clk 0:00:55.2]} 10... b6 {[%clk 0:02:34.5]} 11.
e4 {[%clk 0:00:55]} 11... Bb7 {[%clk 0:02:31.5]} 12. Qe2 {[%clk 0:00:54.9]}
12... Nd7 {[%clk 0:02:17.2]} 13. c3 {[%clk 0:00:54.3]} 13... c5 {[%clk
0:02:11.3]} 14. Nf3 {[%clk 0:00:53.6]} 14... cxd4 {[%clk 0:02:03.7]} 15. cxd4
{[%clk 0:00:54.5]} 15... g4 {[%clk 0:02:01.7]} 16. Nh4 {[%clk 0:00:54.8]} 16...
Bxd4 {[%clk 0:02:01.2]} 17. Nf5 {[%clk 0:00:55]} 17... Bf6 {[%clk 0:01:56.8]}
18. Nc3 {[%clk 0:00:51.4]} 18... h5 {[%clk 0:00:58.5]} 19. f3 {[%clk 0:00:36.7]}
19... gxf3 {[%clk 0:00:56.1]} 20. gxf3 {[%clk 0:00:37.6]} 20... Ne5 {[%clk
0:00:52.2]} 21. Bb5+ {[%clk 0:00:29.9]} 21... Kf8 {[%clk 0:00:52.1]} 22. g4
{[%clk 0:00:26.4]} 22... e6 {[%clk 0:00:42.6]} 23. Ne3 {[%clk 0:00:22.1]} 23...
a6 {[%clk 0:00:39.2]} 24. Ba4 {[%clk 0:00:21.2]} 24... b5 {[%clk 0:00:37.8]} 25.
Bb3 {[%clk 0:00:20.6]} 25... Bh4+ {[%clk 0:00:34.3]} 26. Kd1 {[%clk 0:00:16.6]}
26... Qf6 {[%clk 0:00:26.5]} 27. gxh5 {[%clk 0:00:16.7]} 27... b4 {[%clk
0:00:25.2]} 28. Na4 {[%clk 0:00:14.9]} 28... Nxf3 {[%clk 0:00:25.1]} 29. Bc2
{[%clk 0:00:10.1]} 29... Nd4 {[%clk 0:00:22]} 30. Qd3 {[%clk 0:00:07.7]} 30...
Nxc2 {[%clk 0:00:19]} 31. Nxc2 {[%clk 0:00:06.9]} 31... Ke7 {[%clk 0:00:14.9]}
32. Rf1 {[%clk 0:00:06.6]} 32... Qe5 {[%clk 0:00:13.3]} 33. Nb6 {[%clk
0:00:03.9]} 33... Qxh5+ {[%clk 0:00:10.9]} 34. Kc1 {[%clk 0:00:02.2]} 34... Rad8
{[%clk 0:00:10.1]} 35. Nc4 {[%clk 0:00:02.6]} 35... Qc5 {[%clk 0:00:07.6]} 36.
N4e3 {[%clk 0:00:02.8]} 36... Bg5 {[%clk 0:00:06.2]} 37. Qe2 {[%clk 0:00:02.8]}
37... Rc8 {[%clk 0:00:05.5]} 38. Kd2 {[%clk 0:00:03]} 38... Bxe4 {[%clk
0:00:05.4]} 39. Rac1 {[%clk 0:00:02.7]} 39... Qd5+ {[%clk 0:00:03.8]} 40. Ke1
{[%clk 0:00:02.6]} 40... Bxe3 {[%clk 0:00:03.7]} 41. Qxe3 {[%clk 0:00:02.7]}
41... Rxc2 {[%clk 0:00:03.2]} 42. Qa7+ {[%clk 0:00:01.7]} 42... Qb7 {[%clk
0:00:02.7]} 43. Qxb7+ {[%clk 0:00:02.1]} 43... Bxb7 {[%clk 0:00:03.4]} 44. Rxc2
{[%clk 0:00:03]} 44... Rd8 {[%clk 0:00:03]} 45. Rc7+ {[%clk 0:00:03.2]} 45...
Rd7 {[%clk 0:00:01.9]} 46. Rxf7+ {[%clk 0:00:02.6]} 46... Kxf7 {[%clk
0:00:01.5]} 47. Rxd7+ {[%clk 0:00:03.5]} 1-0

[Event "Late-Titled-Tuesday-Blitz-January-16-2024"]
[Site "Chess.com"]
[Date "2024.01.16"]
[Round "10"]
[White "SCIM"]
[Black "VerdeNotte"]
[Result "1-0"]
[WhiteElo "2622"]
[BlackElo "2886"]
[TimeControl "180+1"]
[EndTime "15:57:26 PST"]
[Termination "SCIM won on time"]

1. d4 {[%clk 0:02:58.9]} 1... d5 {[%clk 0:02:58.7]} 2. c4 {[%clk 0:02:59.2]}
2... e6 {[%clk 0:02:55.8]} 3. Nf3 {[%clk 0:02:58.9]} 3... a6 {[%clk 0:02:56.1]}
4. Nbd2 {[%clk 0:02:54.5]} 4... Nf6 {[%clk 0:02:55.6]} 5. g3 {[%clk 0:02:54.1]}
5... b6 {[%clk 0:02:55.4]} 6. Bg2 {[%clk 0:02:52.4]} 6... Bb7 {[%clk 0:02:55.8]}
7. O-O {[%clk 0:02:52.5]} 7... Nbd7 {[%clk 0:02:56]} 8. b3 {[%clk 0:02:49.5]}
8... Bd6 {[%clk 0:02:52.8]} 9. Bb2 {[%clk 0:02:48.6]} 9... O-O {[%clk
0:02:52.3]} 10. Rc1 {[%clk 0:02:47.6]} 10... Qe7 {[%clk 0:02:48.2]} 11. Qc2
{[%clk 0:02:44.9]} 11... c5 {[%clk 0:02:40.2]} 12. e3 {[%clk 0:02:41.2]} 12...
Rac8 {[%clk 0:02:36.5]} 13. Qb1 {[%clk 0:02:39.7]} 13... cxd4 {[%clk 0:02:34.3]}
14. Nxd4 {[%clk 0:02:36]} 14... Ba3 {[%clk 0:02:31.4]} 15. cxd5 {[%clk
0:02:28.3]} 15... Bxd5 {[%clk 0:02:16.1]} 16. Bxd5 {[%clk 0:02:24]} 16... Nxd5
{[%clk 0:02:09.2]} 17. Nc6 {[%clk 0:02:09.3]} 17... Rxc6 {[%clk 0:01:58.3]} 18.
Rxc6 {[%clk 0:02:08.3]} 18... Bxb2 {[%clk 0:01:57.2]} 19. Qxb2 {[%clk
0:02:07.6]} 19... Nc5 {[%clk 0:01:57.6]} 20. e4 {[%clk 0:01:51.8]} 20... Nf6
{[%clk 0:01:24.1]} 21. Rxb6 {[%clk 0:01:18.4]} 21... Qc7 {[%clk 0:01:20.3]} 22.
Nc4 {[%clk 0:01:16.9]} 22... Nfxe4 {[%clk 0:01:10.4]} 23. Qe5 {[%clk 0:01:14]}
23... Qe7 {[%clk 0:00:39.9]} 24. b4 {[%clk 0:00:53.5]} 24... f6 {[%clk
0:00:13.9]} 25. Qf4 {[%clk 0:00:50.3]} 25... Ng5 {[%clk 0:00:13.6]} 26. Qe3
{[%clk 0:00:42.8]} 26... Nd7 {[%clk 0:00:10.4]} 27. Rb7 {[%clk 0:00:39.4]} 27...
Rd8 {[%clk 0:00:05.2]} 28. h4 {[%clk 0:00:38.4]} 28... Nf7 {[%clk 0:00:04.9]}
29. Rd1 {[%clk 0:00:33.3]} 29... Qe8 {[%clk 0:00:05.3]} 30. Nd6 {[%clk
0:00:30.1]} 30... Nxd6 {[%clk 0:00:04]} 31. Rxd6 {[%clk 0:00:29.8]} 31... Ne5
{[%clk 0:00:04.8]} 32. Qb6 {[%clk 0:00:20.3]} 32... Rc8 {[%clk 0:00:03]} 33. Rc7
{[%clk 0:00:13]} 33... Rb8 {[%clk 0:00:02.6]} 34. Rxe6 {[%clk 0:00:08.9]} 34...
Qd8 {[%clk 0:00:02.1]} 35. Qd6 {[%clk 0:00:08.3]} 35... h5 {[%clk 0:00:01.7]}
36. Qxd8+ {[%clk 0:00:08]} 36... Rxd8 {[%clk 0:00:02.6]} 37. Ree7 {[%clk
0:00:08.3]} 37... Kh7 {[%clk 0:00:01.7]} 38. Rxg7+ {[%clk 0:00:08]} 38... Kh6
{[%clk 0:00:02.4]} 39. Rh7+ {[%clk 0:00:07.8]} 39... Kg6 {[%clk 0:00:02.5]} 40.
Rcg7+ {[%clk 0:00:08.3]} 40... Kf5 {[%clk 0:00:03]} 41. Rxh5+ {[%clk 0:00:08.3]}
41... Ke4 {[%clk 0:00:03.7]} 42. Re7 {[%clk 0:00:08.2]} 42... Kf3 {[%clk
0:00:02.6]} 43. Rf5+ {[%clk 0:00:07.6]} 43... Kg4 {[%clk 0:00:03]} 44. Rxf6
{[%clk 0:00:07.4]} 44... Kh3 {[%clk 0:00:03.6]} 45. f4 {[%clk 0:00:04.5]} 45...
Ng4 {[%clk 0:00:03.4]} 46. Rfe6 {[%clk 0:00:02.6]} 46... Rd3 {[%clk 0:00:03.5]}
47. Re2 {[%clk 0:00:02.3]} 47... Rxg3+ {[%clk 0:00:03.6]} 48. Kf1 {[%clk
0:00:03]} 48... Rf3+ {[%clk 0:00:04.1]} 49. Ke1 {[%clk 0:00:03]} 49... Rxf4
{[%clk 0:00:03.4]} 50. Kd2 {[%clk 0:00:03.7]} 50... Rxb4 {[%clk 0:00:02]} 51. h5
{[%clk 0:00:04.4]} 51... Ra4 {[%clk 0:00:02]} 52. h6 {[%clk 0:00:04.3]} 1-0

[Event "Late-Titled-Tuesday-Blitz-January-16-2024"]
[Site "Chess.com"]
[Date "2024.01.16"]
[Round "10"]
[White "karinachess1"]
[Black "EsmeraldasAnderson03"]
[Result "1-0"]
[WhiteElo "2623"]
[BlackElo "2410"]
[TimeControl "180+1"]
[EndTime "15:57:26 PST"]
[Termination "karinachess1 won by checkmate"]

1. d4 {[%clk 0:03:00.9]} 1... d5 {[%clk 0:02:51.5]} 2. c4 {[%clk 0:03:01]} 2...
dxc4 {[%clk 0:02:52.4]} 3. e3 {[%clk 0:02:58.5]} 3... a6 {[%clk 0:02:50.9]} 4.
Bxc4 {[%clk 0:02:54]} 4... Nf6 {[%clk 0:02:51.8]} 5. Nc3 {[%clk 0:02:52.4]} 5...
e6 {[%clk 0:02:52.3]} 6. Nf3 {[%clk 0:02:52.9]} 6... c5 {[%clk 0:02:52.6]} 7.
O-O {[%clk 0:02:52]} 7... Nc6 {[%clk 0:02:50.8]} 8. Qe2 {[%clk 0:02:51.7]} 8...
b5 {[%clk 0:02:50.7]} 9. Bb3 {[%clk 0:02:51.9]} 9... cxd4 {[%clk 0:02:48.9]} 10.
Rd1 {[%clk 0:02:52]} 10... Be7 {[%clk 0:02:48]} 11. Nxd4 {[%clk 0:02:52.1]}
11... Nxd4 {[%clk 0:02:48.1]} 12. exd4 {[%clk 0:02:41.8]} 12... Bb7 {[%clk
0:02:47.3]} 13. d5 {[%clk 0:02:42.4]} 13... exd5 {[%clk 0:02:45.2]} 14. Bg5
{[%clk 0:02:32.3]} 14... O-O {[%clk 0:02:36.7]} 15. Bxf6 {[%clk 0:02:32.4]}
15... Bxf6 {[%clk 0:02:37.1]} 16. Nxd5 {[%clk 0:02:32.9]} 16... Bxd5 {[%clk
0:02:17.6]} 17. Bxd5 {[%clk 0:02:33.8]} 17... Qe8 {[%clk 0:02:17.7]} 18. Qc2
{[%clk 0:02:09.4]} 18... Rc8 {[%clk 0:02:15.5]} 19. Qb3 {[%clk 0:02:09.5]} 19...
Qe5 {[%clk 0:02:13.6]} 20. Rd2 {[%clk 0:02:04.8]} 20... h6 {[%clk 0:02:02.1]}
21. Rad1 {[%clk 0:01:58.5]} 21... Rc7 {[%clk 0:01:38.8]} 22. g3 {[%clk
0:01:58.1]} 22... Re7 {[%clk 0:01:30.2]} 23. h4 {[%clk 0:01:53.9]} 23... g6
{[%clk 0:01:28.9]} 24. a4 {[%clk 0:01:51.1]} 24... Rb8 {[%clk 0:01:18.6]} 25.
Qc2 {[%clk 0:01:31.5]} 25... Kg7 {[%clk 0:01:09.7]} 26. axb5 {[%clk 0:01:20]}
26... Rxb5 {[%clk 0:01:08.6]} 27. b3 {[%clk 0:01:20.3]} 27... h5 {[%clk
0:01:06.1]} 28. Bc4 {[%clk 0:01:17.8]} 28... Rb6 {[%clk 0:01:05.2]} 29. Rd7
{[%clk 0:01:09.7]} 29... Rxd7 {[%clk 0:00:43.1]} 30. Rxd7 {[%clk 0:01:09.6]}
30... Be7 {[%clk 0:00:43.6]} 31. Kg2 {[%clk 0:01:07.1]} 31... Rf6 {[%clk
0:00:43]} 32. Rd5 {[%clk 0:00:42.8]} 32... Qc7 {[%clk 0:00:33.2]} 33. Qd3 {[%clk
0:00:40.5]} 33... Bc5 {[%clk 0:00:31.8]} 34. f4 {[%clk 0:00:33.5]} 34... Qa5
{[%clk 0:00:12.2]} 35. Qd2 {[%clk 0:00:14.5]} 35... Qa3 {[%clk 0:00:11.2]} 36.
f5 {[%clk 0:00:13.3]} 36... Bb4 {[%clk 0:00:08.3]} 37. Qc2 {[%clk 0:00:10.1]}
37... Bc5 {[%clk 0:00:07.6]} 38. Kh3 {[%clk 0:00:07.6]} 38... Qa1 {[%clk
0:00:06.6]} 39. Qg2 {[%clk 0:00:06.9]} 39... Bd6 {[%clk 0:00:04]} 40. fxg6
{[%clk 0:00:05.1]} 40... Rxg6 {[%clk 0:00:04.9]} 41. Rg5 {[%clk 0:00:05.4]}
41... Rxg5 {[%clk 0:00:04.6]} 42. hxg5 {[%clk 0:00:06.3]} 42... Qe5 {[%clk
0:00:04.6]} 43. Qf3 {[%clk 0:00:05.4]} 43... Qe7 {[%clk 0:00:01.5]} 44. Qf5
{[%clk 0:00:04.7]} 44... Be5 {[%clk 0:00:01.9]} 45. g4 {[%clk 0:00:04.2]} 45...
Kg8 {[%clk 0:00:02.2]} 46. gxh5 {[%clk 0:00:04.4]} 46... Bg7 {[%clk 0:00:01.8]}
47. h6 {[%clk 0:00:04]} 47... Qe3+ {[%clk 0:00:02.4]} 48. Kg4 {[%clk 0:00:04.3]}
48... Qd4+ {[%clk 0:00:01.6]} 49. Kh5 {[%clk 0:00:04.7]} 49... Qd1+ {[%clk
0:00:01.8]} 50. Kh4 {[%clk 0:00:04.5]} 50... Qh1+ {[%clk 0:00:02.4]} 51. Kg4
{[%clk 0:00:04.7]} 51... Qg1+ {[%clk 0:00:03]} 52. Kf4 {[%clk 0:00:05.2]} 52...
Qf2+ {[%clk 0:00:03.6]} 53. Ke4 {[%clk 0:00:05.6]} 53... Qc2+ {[%clk 0:00:04.2]}
54. Bd3 {[%clk 0:00:06]} 54... Qc6+ {[%clk 0:00:04.8]} 55. Ke3 {[%clk
0:00:05.1]} 55... Qb6+ {[%clk 0:00:04.6]} 56. Ke2 {[%clk 0:00:05.3]} 56... Bf8
{[%clk 0:00:04]} 57. Qh7# {[%clk 0:00:05.5]} 1-0

[Event "Late-Titled-Tuesday-Blitz-January-16-2024"]
[Site "Chess.com"]
[Date "2024.01.16"]
[Round "10"]
[White "Jospem"]
[Black "Fandorine"]
[Result "0-1"]
[WhiteElo "3083"]
[BlackElo "2978"]
[TimeControl "180+1"]
[EndTime "15:57:27 PST"]
[Termination "Fandorine won by resignation"]

1. e4 {[%clk 0:03:00.9]} 1... e5 {[%clk 0:02:54.6]} 2. Nf3 {[%clk 0:03:00.8]}
2... Nc6 {[%clk 0:02:54.3]} 3. Bb5 {[%clk 0:03:01.4]} 3... a6 {[%clk 0:02:54.2]}
4. Ba4 {[%clk 0:03:01.5]} 4... Nf6 {[%clk 0:02:53.9]} 5. d3 {[%clk 0:03:00.9]}
5... d6 {[%clk 0:02:53.7]} 6. c3 {[%clk 0:03:00.9]} 6... Be7 {[%clk 0:02:53.7]}
7. O-O {[%clk 0:03:00.5]} 7... O-O {[%clk 0:02:54.1]} 8. Re1 {[%clk 0:02:59]}
8... Re8 {[%clk 0:02:53.2]} 9. Nbd2 {[%clk 0:02:58.3]} 9... b5 {[%clk
0:02:53.2]} 10. Bb3 {[%clk 0:02:58.2]} 10... Bf8 {[%clk 0:02:53.7]} 11. Nf1
{[%clk 0:02:48.5]} 11... h6 {[%clk 0:02:51.8]} 12. Ng3 {[%clk 0:02:39.4]} 12...
Ne7 {[%clk 0:02:42.5]} 13. a4 {[%clk 0:02:27.8]} 13... Rb8 {[%clk 0:02:39.4]}
14. axb5 {[%clk 0:02:27.6]} 14... axb5 {[%clk 0:02:39.5]} 15. d4 {[%clk
0:02:22.9]} 15... Ng6 {[%clk 0:02:34.1]} 16. h3 {[%clk 0:02:23]} 16... c5 {[%clk
0:02:28.2]} 17. Bc2 {[%clk 0:02:16.4]} 17... Bd7 {[%clk 0:02:20]} 18. Be3 {[%clk
0:02:12.7]} 18... Bc6 {[%clk 0:02:00.1]} 19. d5 {[%clk 0:02:06.9]} 19... Bd7
{[%clk 0:01:58.9]} 20. b4 {[%clk 0:02:07.2]} 20... c4 {[%clk 0:01:58.6]} 21. Qd2
{[%clk 0:01:47]} 21... Be7 {[%clk 0:01:55.9]} 22. Ra7 {[%clk 0:01:40.9]} 22...
Nh7 {[%clk 0:01:52.4]} 23. Nf5 {[%clk 0:01:34.6]} 23... Bxf5 {[%clk 0:01:48.7]}
24. exf5 {[%clk 0:01:35.5]} 24... Ngf8 {[%clk 0:01:46.6]} 25. Rea1 {[%clk
0:01:21.2]} 25... Nd7 {[%clk 0:01:10.4]} 26. Nh2 {[%clk 0:01:21.3]} 26... Bg5
{[%clk 0:01:07.4]} 27. Nf1 {[%clk 0:01:21.7]} 27... e4 {[%clk 0:00:51.1]} 28.
R1a6 {[%clk 0:00:57.3]} 28... Ndf6 {[%clk 0:00:48.9]} 29. Qd4 {[%clk 0:00:48.1]}
29... Re5 {[%clk 0:00:45.7]} 30. Bxg5 {[%clk 0:00:44.9]} 30... Nxg5 {[%clk
0:00:37.8]} 31. Ne3 {[%clk 0:00:45.3]} 31... Re7 {[%clk 0:00:21.9]} 32. Ra5
{[%clk 0:00:30.5]} 32... Rxa7 {[%clk 0:00:20]} 33. Rxa7 {[%clk 0:00:31.4]} 33...
Ngh7 {[%clk 0:00:18.8]} 34. Ra5 {[%clk 0:00:30.1]} 34... Qe8 {[%clk 0:00:13.3]}
35. Ra6 {[%clk 0:00:29.3]} 35... Qe7 {[%clk 0:00:13.4]} 36. Qa7 {[%clk
0:00:20.1]} 36... Qxa7 {[%clk 0:00:11.6]} 37. Rxa7 {[%clk 0:00:21]} 37... Nf8
{[%clk 0:00:11.5]} 38. Ra6 {[%clk 0:00:20.7]} 38... Rd8 {[%clk 0:00:11.1]} 39.
Rb6 {[%clk 0:00:20.4]} 39... h5 {[%clk 0:00:08.9]} 40. Rxb5 {[%clk 0:00:20.5]}
40... N8d7 {[%clk 0:00:09.6]} 41. Nxc4 {[%clk 0:00:16.1]} 41... Rc8 {[%clk
0:00:10.1]} 42. Bb3 {[%clk 0:00:15.1]} 42... e3 {[%clk 0:00:10.3]} 43. fxe3
{[%clk 0:00:13.9]} 43... Ne4 {[%clk 0:00:10.8]} 44. Rb7 {[%clk 0:00:13.5]} 44...
Ndf6 {[%clk 0:00:11.3]} 45. b5 {[%clk 0:00:12.5]} 45... Ra8 {[%clk 0:00:04.3]}
46. Bc2 {[%clk 0:00:09.3]} 46... Ra1+ {[%clk 0:00:03.7]} 47. Kh2 {[%clk
0:00:09.9]} 47... h4 {[%clk 0:00:03.5]} 48. Bxe4 {[%clk 0:00:10.1]} 48... Nxe4
{[%clk 0:00:04.4]} 49. g4 {[%clk 0:00:03.6]} 49... hxg3+ {[%clk 0:00:04.1]} 50.
Kg2 {[%clk 0:00:04.5]} 50... Ra2+ {[%clk 0:00:04.6]} 51. Kg1 {[%clk 0:00:04.2]}
51... Ng5 {[%clk 0:00:04.2]} 52. Rb8+ {[%clk 0:00:01.5]} 52... Kh7 {[%clk
0:00:04.4]} 53. Kf1 {[%clk 0:00:01.7]} 53... Nf3 {[%clk 0:00:04.2]} 54. Nd2
{[%clk 0:00:01.5]} 54... Rxd2 {[%clk 0:00:04.4]} 0-1